[Event "EYCC Girls-U14 2019"]
[Site "Bratislava"]
[Date "2019.08.07"]
[Round "6.4"]
[White "Wikar, Martyna"]
[Black "Anacoglu, Cisel"]
[Result "1/2-1/2"]
[ECO "C55"]
[WhiteElo "2020"]
[BlackElo "1869"]
[Annotator "NA"]
[PlyCount "114"]
[EventDate "2019.08.02"]
[EventType "swiss"]
[EventCountry "SVK"]
[SourceTitle "playchess.com"]
[Source "ChessBase"]
[SourceQuality "1"]
[TimeControl "40/5400+30:1800+30"]

1. e4 {[%emt 0:00:00]} e5 {[%emt 0:00:00]} 2. Nf3 {[%emt 0:00:00]} Nc6 {[%emt 0:00:00]} 3. Bc4 {[%emt 0:00:00]} Nf6 {[%emt 0:00:00]} 4. d3 {[%emt 0:00:23]} Be7 {[%emt 0:00:00]} 5. Bb3 {[%emt 0:00:36]} d6 {[%emt 0:02:07]} 6. c3 {[%emt 0:02:01]} O-O {[%emt 0:00:18]} 7. O-O {[%emt 0:00:06]} Na5 {[%emt 0:00:28]} 8. Bc2 {[%emt 0:01:10]} c5 {[%emt 0:00:10]} 9. Nbd2 {[%emt 0:03:46]} Nc6 {[%emt 0:00:22]} 10. Nc4 {[%emt 0:02:32]} Re8 {[%emt 0:05:04]} 11. Re1 {[%emt 0:01:57]} h6 {[%emt 0:02:07]} 12. h3 {[%emt 0:06:38]} Bf8 {[%emt 0:00:40]} 13. Ne3 {[%emt 0:04:02]} g6 {[%emt 0:04:15]} 14. Qe2 {[%emt 0:05:52]} Be6 {[%emt 0:06:02]} 15. Nh2 {[%emt 0:03:08]} Nh5 {[%emt 0:06:13]} 16. Nd5 {[%emt 0:07:36]} Bxd5 {[%emt 0:01:55]} 17. exd5 {[%emt 0:00:08]} Ne7 {[%emt 0:00:06]} 18. Ba4 {[%emt 0:01:10]} Nxd5 {[%emt 0:01:28]} 19. Bxe8 {[%emt 0:00:10]} Qxe8 {[%emt 0:01:35]} 20. Qf3 {[%emt 0:02:15]} Qc6 {[%emt 0:07:36]} 21. Ng4 {[%emt 0:02:53]} Ndf4 {[%emt 0:02:31]} 22. Qxc6 {[%emt 0:01:06]} bxc6 {[%emt 0:00:06]} 23. Bxf4 {[%emt 0:02:22]} Nxf4 {[%emt 0:00:12]} 24. Rad1 {[%emt 0:01:48]} Bg7 {[%emt 0:04:21]} 25. f3 {[%emt 0:03:44]} Rb8 {[%emt 0:03:07]} 26. Rd2 {[%emt 0:03:16]} h5 {[%emt 0:00:56]} 27. Ne3 {[%emt 0:00:42]} Bh6 {[%emt 0:03:32]} 28. Nf1 {[%emt 0:06:56]} f5 {[%emt 0:12:10]} 29. Kh2 {[%emt 0:06:30]} h4 {[%emt 0:00:35]} 30. b3 {[%emt 0:01:58]} Kf7 {[%emt 0:04:37]} 31. Red1 {[%emt 0:04:01]} d5 {[%emt 0:12:33]} 32. Rc2 {[%emt 0:02:45]} Bg7 {[%emt 0:04:27]} 33. b4 {[%emt 0:06:49]} cxb4 {[%emt 0:04:35]} 34. cxb4 {[%emt 0:00:05]} Rxb4 {[%emt 0:02:14]} 35. Rxc6 {[%emt 0:04:07]} Rb2 {[%emt 0:00:07]} 36. Rc7+ {[%emt 0:04:02]} Kg8 {[%emt 0:00:21]} 37. Rd2 {[%emt 0:01:37]} Rxd2 {[%emt 0:00:49]} 38. Nxd2 {[%emt 0:00:14]} Nxd3 {[%emt 0:00:10]} 39. Rd7 {[%emt 0:04:05]} Nf4 {[%emt 0:00:43]} 40. g3 {[%emt 0:00:00]} hxg3+ {[%emt 0:00:00]} 41. Kxg3 {[%emt 0:01:11]} Bh6 {[%emt 0:01:52]} 42. Nb3 {[%emt 0:06:36]} d4 {[%emt 0:02:07]} 43. a4 {[%emt 0:01:15]} d3 {[%emt 0:00:34]} 44. a5 {[%emt 0:02:21]} e4 {[%emt 0:02:00]} 45. fxe4 {[%emt 0:00:31]} fxe4 {[%emt 0:00:05]} 46. Nc5 {[%emt 0:05:00]} Ne2+ {[%emt 0:01:00]} 47. Kg2 {[%emt 0:05:41]} Nc3 {[%emt 0:04:49]} 48. Nxd3 {[%emt 0:03:40]} exd3 {[%emt 0:01:45]} 49. Rxd3 {[%emt 0:00:10]} Nb5 {[%emt 0:01:38]} 50. a6 {[%emt 0:00:48]} Bf8 {[%emt 0:03:52]} 51. Rd5 {[%emt 0:03:14]} Nc7 {[%emt 0:00:14]} 52. Rd7 {[%emt 0:00:13]} Nxa6 {[%emt 0:00:10]} 53. Rxa7 {[%emt 0:00:05]} Nb4 {[%emt 0:00:49]} 54. Kg3 {[%emt 0:00:49]} Nc6 {[%emt 0:00:28]} 55. Ra6 {[%emt 0:00:51]} Ne7 {[%emt 0:00:24]} 56. Kg4 {[%emt 0:00:21]} Kf7 {[%emt 0:00:28]} 57. h4 {[%emt 0:00:22]} Bg7 {[%emt 0:00:16]} 1/2-1/2

[Event "EYCC Girls-U14 2019"]
[Site "Bratislava"]
[Date "2019.08.07"]
[Round "6.5"]
[White "Tarasenka, Aliaksandra"]
[Black "Hakobyan, Astghik"]
[Result "1/2-1/2"]
[ECO "E25"]
[WhiteElo "2231"]
[BlackElo "1863"]
[Annotator "NA"]
[PlyCount "79"]
[EventDate "2019.08.02"]
[EventType "swiss"]
[EventCountry "SVK"]
[SourceTitle "playchess.com"]
[Source "ChessBase"]
[SourceQuality "1"]
[TimeControl "40/5400+30:1800+30"]

1. d4 {[%emt 0:00:00]} Nf6 {[%emt 0:00:00]} 2. c4 {[%emt 0:00:00]} e6 {[%emt 0:00:00]} 3. Nc3 {[%emt 0:00:00]} Bb4 {[%emt 0:00:00]} 4. f3 {[%emt 0:00:00]} d5 {[%emt 0:00:00]} 5. a3 {[%emt 0:00:47]} Bxc3+ {[%emt 0:00:03]} 6. bxc3 {[%emt 0:00:04]} c5 {[%emt 0:00:10]} 7. cxd5 {[%emt 0:00:55]} Nxd5 {[%emt 0:00:07]} 8. Qd3 {[%emt 0:00:35]} Nc6 {[%emt 0:05:27]} 9. e4 {[%emt 0:01:55]} Nde7 {[%emt 0:01:26]} 10. Be3 {[%emt 0:02:54]} Qa5 {[%emt 0:01:48]} 11. Kf2 {[%emt 0:11:22]} O-O {[%emt 0:02:03]} 12. Nh3 {[%emt 0:08:50]} Rd8 {[%emt 0:02:22]} 13. Be2 {[%emt 0:08:32]} cxd4 {[%emt 0:16:49]} 14. cxd4 {[%emt 0:01:00]} Nxd4 {[%emt 0:08:30]} 15. Bxd4 {[%emt 0:16:20]} Qa4 {[%emt 0:00:10]} 16. Qd1 {[%emt 0:15:07]} Qxd4+ {[%emt 0:00:45]} 17. Qxd4 {[%emt 0:00:35]} Rxd4 {[%emt 0:00:05]} 18. Rhd1 {[%emt 0:01:04]} e5 {[%emt 0:00:17]} 19. Nf4 {[%emt 0:07:59]} Be6 {[%emt 0:11:57]} 20. Nxe6 {[%emt 0:02:13]} fxe6 {[%emt 0:03:29]} 21. Rdc1 {[%emt 0:04:05]} Nc6 {[%emt 0:02:05]} 22. Rab1 {[%emt 0:05:12]} Rd7 {[%emt 0:03:12]} 23. Ba6 {[%emt 0:02:13]} Nd8 {[%emt 0:03:38]} 24. Bb5 {[%emt 0:01:47]} Rd2+ {[%emt 0:01:22]} 25. Kg3 {[%emt 0:03:19]} a6 {[%emt 0:07:35]} 26. Bf1 {[%emt 0:01:13]} Kf7 {[%emt 0:06:22]} 27. Rc7+ {[%emt 0:01:42]} Kf6 {[%emt 0:00:01]} 28. a4 {[%emt 0:01:07]} Ra2 {[%emt 0:02:04]} 29. Rd1 {[%emt 0:02:23]} Rxa4 {[%emt 0:04:00]} 30. Rdd7 {[%emt 0:00:09]} Ra1 {[%emt 0:04:02]} 31. Kf2 {[%emt 0:00:30]} Ra2+ {[%emt 0:01:51]} 32. Kg3 {[%emt 0:00:04]} b5 {[%emt 0:05:47]} 33. Rxg7 {[%emt 0:00:35]} Rc2 {[%emt 0:00:13]} 34. Rcd7 {[%emt 0:00:56]} Rd2 {[%emt 0:00:10]} 35. Rc7 {[%emt 0:00:25]} Rc8 {[%emt 0:02:38]} 36. Ra7 {[%emt 0:00:50]} Ra8 {[%emt 0:02:50]} 37. Rac7 {[%emt 0:00:49]} Rc8 {[%emt 0:00:04]} 38. Ra7 {[%emt 0:00:05]} Ra8 {[%emt 0:00:04]} 39. Rac7 {[%emt 0:01:18]} Rc8 {[%emt 0:00:11]} 40. Ra7 {[%emt 0:00:00]} 1/2-1/2

[Event "EYCC Girls-U14 2019"]
[Site "Bratislava"]
[Date "2019.08.07"]
[Round "6.6"]
[White "Hrebenshchykova, Yelyzaveta"]
[Black "Toncheva, Nadya"]
[Result "1-0"]
[ECO "D25"]
[WhiteElo "1955"]
[BlackElo "2087"]
[Annotator "NA"]
[PlyCount "84"]
[EventDate "2019.08.02"]
[EventType "swiss"]
[EventCountry "SVK"]
[SourceTitle "playchess.com"]
[Source "ChessBase"]
[SourceQuality "1"]
[TimeControl "40/5400+30:1800+30"]

1. d4 {[%emt 0:00:00]} d5 {[%emt 0:00:00]} 2. c4 {[%emt 0:00:00]} dxc4 {[%emt 0:00:00]} 3. Nf3 {[%emt 0:00:00]} Nf6 {[%emt 0:00:00]} 4. e3 {[%emt 0:00:00]} Bg4 {[%emt 0:02:26]} 5. Bxc4 {[%emt 0:00:05]} e6 {[%emt 0:00:03]} 6. h3 {[%emt 0:00:17]} Bh5 {[%emt 0:00:04]} 7. g4 {[%emt 0:01:19]} Bg6 {[%emt 0:00:04]} 8. Ne5 {[%emt 0:00:06]} Nbd7 {[%emt 0:02:14]} 9. Nxg6 {[%emt 0:01:03]} hxg6 {[%emt 0:00:05]} 10. Bf1 {[%emt 0:01:42]} c5 {[%emt 0:03:05]} 11. Bg2 {[%emt 0:03:54]} cxd4 {[%emt 0:04:51]} 12. Qxd4 {[%emt 0:18:13]} Qc7 {[%emt 0:10:10]} 13. Nc3 {[%emt 0:02:56]} Rd8 {[%emt 0:12:50]} 14. O-O {[%emt 0:07:47]} a6 {[%emt 0:14:01]} 15. Qa4 {[%emt 0:09:42]} Bc5 {[%emt 0:11:23]} 16. Rd1 {[%emt 0:10:56]} g5 {[%emt 0:00:56]} 17. Ne4 {[%emt 0:10:21]} Nxe4 {[%emt 0:07:24]} 18. Qxe4 {[%emt 0:00:05]} Nf6 {[%emt 0:04:22]} 19. Rxd8+ {[%emt 0:01:01]} Qxd8 {[%emt 0:00:07]} 20. Qxb7 {[%emt 0:09:05]} Qd1+ {[%emt 0:00:25]} 21. Bf1 {[%emt 0:00:04]} O-O {[%emt 0:15:12]} 22. Qxa6 {[%emt 0:10:25]} Rd8 {[%emt 0:01:18]} 23. Qe2 {[%emt 0:03:26]} Qa4 {[%emt 0:00:04]} 24. b3 {[%emt 0:01:54]} Qa5 {[%emt 0:01:39]} 25. Qc4 {[%emt 0:01:54]} Nd5 {[%emt 0:02:54]} 26. Bb2 {[%emt 0:01:22]} Nxe3 {[%emt 0:01:00]} 27. Qc3 {[%emt 0:03:29]} Qxc3 {[%emt 0:00:05]} 28. Bxc3 {[%emt 0:00:03]} Nxf1 {[%emt 0:01:38]} 29. Rxf1 {[%emt 0:01:25]} Rd3 {[%emt 0:00:02]} 30. Rc1 {[%emt 0:00:35]} Rxh3 {[%emt 0:01:30]} 31. b4 {[%emt 0:01:15]} Ba7 {[%emt 0:00:44]} 32. Kg2 {[%emt 0:00:14]} Rd3 {[%emt 0:00:32]} 33. a4 {[%emt 0:01:07]} Rd5 {[%emt 0:03:55]} 34. b5 {[%emt 0:00:22]} f5 {[%emt 0:01:07]} 35. gxf5 {[%emt 0:00:45]} exf5 {[%emt 0:00:04]} 36. Rb1 {[%emt 0:00:25]} Rd3 {[%emt 0:00:27]} 37. Be1 {[%emt 0:00:29]} Kf7 {[%emt 0:00:49]} 38. b6 {[%emt 0:00:18]} Bb8 {[%emt 0:00:02]} 39. a5 {[%emt 0:00:21]} Ke6 {[%emt 0:00:54]} 40. Bb4 {[%emt 0:00:00]} Be5 {[%emt 0:00:00]} 41. a6 {[%emt 0:02:53]} Rd8 {[%emt 0:03:44]} 42. Re1 {[%emt 0:06:19]} Kd5 1-0

[Event "EYCC Girls-U14 2019"]
[Site "Bratislava"]
[Date "2019.08.07"]
[Round "6.7"]
[White "Roebers, Eline"]
[Black "Kasaeva, Sofiia"]
[Result "1-0"]
[ECO "C55"]
[WhiteElo "2069"]
[BlackElo "1897"]
[Annotator "NA"]
[PlyCount "145"]
[EventDate "2019.08.02"]
[EventType "swiss"]
[EventCountry "SVK"]
[SourceTitle "playchess.com"]
[Source "ChessBase"]
[SourceQuality "1"]
[TimeControl "40/5400+30:1800+30"]

1. e4 {[%emt 0:00:00]} e5 {[%emt 0:00:00]} 2. Nf3 {[%emt 0:00:14]} Nc6 {[%emt 0:00:00]} 3. Bc4 {[%emt 0:00:37]} Nf6 {[%emt 0:00:07]} 4. d3 {[%emt 0:00:44]} Be7 {[%emt 0:00:16]} 5. c3 {[%emt 0:01:26]} O-O {[%emt 0:01:11]} 6. O-O {[%emt 0:00:52]} d6 {[%emt 0:01:12]} 7. Bb3 {[%emt 0:01:57]} Na5 {[%emt 0:02:22]} 8. Bc2 {[%emt 0:01:29]} c5 {[%emt 0:00:44]} 9. Nbd2 {[%emt 0:03:30]} Nc6 {[%emt 0:03:59]} 10. Re1 {[%emt 0:02:01]} Re8 {[%emt 0:05:51]} 11. Nf1 {[%emt 0:02:46]} Bf8 {[%emt 0:03:02]} 12. Ng3 {[%emt 0:08:27]} b5 {[%emt 0:06:43]} 13. h3 {[%emt 0:01:51]} h6 {[%emt 0:10:59]} 14. Be3 {[%emt 0:07:56]} a5 {[%emt 0:05:08]} 15. d4 {[%emt 0:09:26]} Qc7 {[%emt 0:02:10]} 16. dxc5 {[%emt 0:10:02]} dxc5 {[%emt 0:00:22]} 17. Nh4 {[%emt 0:01:50]} Kh7 {[%emt 0:10:07]} 18. Qf3 {[%emt 0:03:35]} Ng8 {[%emt 0:01:31]} 19. Qe2 {[%emt 0:03:28]} Qd8 {[%emt 0:06:44]} 20. Nf3 {[%emt 0:02:09]} Ba6 {[%emt 0:17:30]} 21. Rad1 {[%emt 0:04:30]} Qc7 {[%emt 0:00:58]} 22. Rd2 {[%emt 0:08:10]} Red8 {[%emt 0:05:55]} 23. Red1 {[%emt 0:01:51]} b4 {[%emt 0:01:35]} 24. Bd3 {[%emt 0:07:51]} Bxd3 {[%emt 0:01:00]} 25. Rxd3 {[%emt 0:00:05]} Nf6 {[%emt 0:01:56]} 26. Rxd8 {[%emt 0:04:24]} Rxd8 {[%emt 0:00:06]} 27. Rxd8 {[%emt 0:00:07]} Nxd8 {[%emt 0:00:17]} 28. Nd2 {[%emt 0:02:09]} Ne6 {[%emt 0:01:03]} 29. Nc4 {[%emt 0:01:32]} a4 {[%emt 0:03:03]} 30. Qc2 {[%emt 0:01:38]} a3 {[%emt 0:00:48]} 31. bxa3 {[%emt 0:00:49]} bxc3 {[%emt 0:00:03]} 32. Qxc3 {[%emt 0:00:25]} Nd4 {[%emt 0:00:30]} 33. Kh2 {[%emt 0:01:06]} Ne8 {[%emt 0:03:51]} 34. a4 {[%emt 0:02:29]} Kg8 {[%emt 0:01:29]} 35. a5 {[%emt 0:01:22]} Nd6 {[%emt 0:00:45]} 36. Nxd6 {[%emt 0:01:09]} Bxd6 {[%emt 0:01:26]} 37. Nf5 {[%emt 0:02:41]} Nxf5 {[%emt 0:02:14]} 38. exf5 {[%emt 0:00:05]} Qa7 {[%emt 0:01:29]} 39. Kg1 {[%emt 0:01:03]} e4 {[%emt 0:00:30]} 40. Qa3 {[%emt 0:00:00]} Qb8 {[%emt 0:00:00]} 41. Qb3 {[%emt 0:03:22]} Qd8 {[%emt 0:13:05]} 42. Qc3 {[%emt 0:08:04]} Bc7 {[%emt 0:06:27]} 43. Bd2 {[%emt 0:03:11]} Qd3 {[%emt 0:07:51]} 44. Qxd3 {[%emt 0:11:50]} exd3 {[%emt 0:00:04]} 45. a6 {[%emt 0:00:29]} Bb6 {[%emt 0:00:06]} 46. Kf1 {[%emt 0:05:43]} Kf8 {[%emt 0:00:55]} 47. Ke1 {[%emt 0:01:40]} Ke7 {[%emt 0:00:05]} 48. Bc3 {[%emt 0:01:01]} g6 {[%emt 0:00:13]} 49. fxg6 {[%emt 0:00:20]} fxg6 {[%emt 0:00:04]} 50. Bd2 {[%emt 0:00:38]} Kd6 {[%emt 0:04:53]} 51. Bf4+ {[%emt 0:00:47]} Kc6 {[%emt 0:00:51]} 52. Bxh6 {[%emt 0:00:30]} Kb5 {[%emt 0:01:34]} 53. Kd2 {[%emt 0:00:27]} c4 {[%emt 0:00:09]} 54. f3 {[%emt 0:00:36]} Kxa6 {[%emt 0:00:23]} 55. Bg7 {[%emt 0:00:28]} Kb5 {[%emt 0:00:36]} 56. g4 {[%emt 0:00:21]} Kc5 {[%emt 0:00:46]} 57. h4 {[%emt 0:00:29]} Kd5 {[%emt 0:00:09]} 58. h5 {[%emt 0:00:21]} gxh5 {[%emt 0:00:07]} 59. gxh5 {[%emt 0:00:04]} Ke6 {[%emt 0:00:06]} 60. h6 {[%emt 0:00:58]} Kf7 {[%emt 0:00:03]} 61. f4 {[%emt 0:00:47]} Bf2 {[%emt 0:02:32]} 62. a4 {[%emt 0:00:28]} Bg3 {[%emt 0:00:26]} 63. f5 {[%emt 0:00:30]} Bf4+ {[%emt 0:00:14]} 64. Kd1 {[%emt 0:00:34]} c3 {[%emt 0:00:40]} 65. Bxc3 {[%emt 0:00:05]} Bxh6 {[%emt 0:00:06]} 66. Bd4 {[%emt 0:00:52]} Bf4 {[%emt 0:01:01]} 67. a5 {[%emt 0:00:13]} Bb8 {[%emt 0:00:24]} 68. a6 {[%emt 0:00:16]} Ke7 {[%emt 0:00:23]} 69. Kd2 {[%emt 0:01:02]} Kd6 {[%emt 0:00:48]} 70. Kxd3 {[%emt 0:00:11]} Kd5 {[%emt 0:00:26]} 71. Ke3 {[%emt 0:00:32]} Kd6 {[%emt 0:00:34]} 72. Ke4 {[%emt 0:00:06]} Kc6 {[%emt 0:00:08]} 73. a7 {[%emt 0:00:07] Kd5+} 1-0

[Event "EYCC Girls-U14 2019"]
[Site "Bratislava"]
[Date "2019.08.07"]
[Round "6.8"]
[White "Mironenko, Galina"]
[Black "Nadzamova, Viktoria"]
[Result "1-0"]
[ECO "E16"]
[WhiteElo "1995"]
[BlackElo "1854"]
[Annotator "NA"]
[PlyCount "81"]
[EventDate "2019.08.02"]
[EventType "swiss"]
[EventCountry "SVK"]
[SourceTitle "playchess.com"]
[Source "ChessBase"]
[SourceQuality "1"]
[TimeControl "40/5400+30:1800+30"]

1. d4 {[%emt 0:00:00]} Nf6 {[%emt 0:00:00]} 2. c4 {[%emt 0:00:00]} e6 {[%emt 0:00:00]} 3. Nf3 {[%emt 0:00:00]} b6 {[%emt 0:00:38]} 4. g3 {[%emt 0:00:02]} Bb4+ {[%emt 0:00:17]} 5. Bd2 {[%emt 0:00:13]} Be7 {[%emt 0:00:10]} 6. Bg2 {[%emt 0:00:12]} Bb7 {[%emt 0:00:07]} 7. O-O {[%emt 0:00:38]} O-O {[%emt 0:00:16]} 8. Qc2 {[%emt 0:01:15]} c5 {[%emt 0:00:30]} 9. Rd1 {[%emt 0:08:32]} d5 {[%emt 0:05:07]} 10. cxd5 {[%emt 0:02:53]} exd5 {[%emt 0:01:06]} 11. Bf4 {[%emt 0:04:04]} Nc6 {[%emt 0:07:53]} 12. Nc3 {[%emt 0:06:46]} Nb4 {[%emt 0:03:39]} 13. Qb1 {[%emt 0:04:11]} c4 {[%emt 0:04:15]} 14. Ne5 {[%emt 0:03:46]} Nh5 {[%emt 0:05:17]} 15. Be3 {[%emt 0:12:16]} Rb8 {[%emt 0:09:16]} 16. a3 {[%emt 0:01:50]} Na6 {[%emt 0:01:52]} 17. Bf3 {[%emt 0:10:31]} Nf6 {[%emt 0:03:52]} 18. Nb5 {[%emt 0:06:36]} Qe8 {[%emt 0:13:20]} 19. a4 {[%emt 0:02:48]} Ra8 {[%emt 0:05:19]} 20. Nxc4 {[%emt 0:04:03]} Bc6 {[%emt 0:00:24]} 21. Nca3 {[%emt 0:06:01]} Bxa3 {[%emt 0:01:16]} 22. bxa3 {[%emt 0:01:13]} Qd7 {[%emt 0:00:52]} 23. Bg5 {[%emt 0:01:39]} Rfc8 {[%emt 0:02:30]} 24. Bxf6 {[%emt 0:03:03]} gxf6 {[%emt 0:00:11]} 25. Qd3 {[%emt 0:02:49]} Nc7 {[%emt 0:01:19]} 26. Rab1 {[%emt 0:01:07]} Ne8 {[%emt 0:04:26]} 27. Nc3 {[%emt 0:02:50]} f5 {[%emt 0:03:09]} 28. Qe3 {[%emt 0:01:11]} Ng7 {[%emt 0:02:08]} 29. Qg5 {[%emt 0:01:55]} Re8 {[%emt 0:04:41]} 30. h4 {[%emt 0:02:05]} Re6 {[%emt 0:04:17]} 31. h5 {[%emt 0:00:56]} h6 {[%emt 0:04:44]} 32. Qf4 {[%emt 0:02:14]} Rd8 {[%emt 0:01:55]} 33. Rdc1 {[%emt 0:00:50]} Rd6 {[%emt 0:03:34]} 34. Nb5 {[%emt 0:01:26]} Rf6 {[%emt 0:02:09]} 35. Qh4 {[%emt 0:00:45]} Ne8 {[%emt 0:01:35]} 36. g4 {[%emt 0:02:04]} a6 {[%emt 0:01:04]} 37. Nc3 {[%emt 0:03:40]} Bb7 {[%emt 0:01:39]} 38. g5 {[%emt 0:00:36]} hxg5 {[%emt 0:00:16]} 39. Qxg5+ {[%emt 0:00:18]} Kh7 {[%emt 0:00:11]} 40. Kh1 {[%emt 0:00:00]} Qe7 {[%emt 0:00:00]} 41. Rxb6 {[%emt 0:04:56]} 1-0

[Event "EYCC Girls-U14 2019"]
[Site "Bratislava"]
[Date "2019.08.07"]
[Round "6.9"]
[White "Tsotsonava, Elene"]
[Black "Bashylina, Luisa"]
[Result "1/2-1/2"]
[ECO "C06"]
[WhiteElo "1878"]
[BlackElo "1989"]
[Annotator "NA"]
[PlyCount "71"]
[EventDate "2019.08.02"]
[EventType "swiss"]
[EventCountry "SVK"]
[SourceTitle "playchess.com"]
[Source "ChessBase"]
[SourceQuality "1"]
[TimeControl "40/5400+30:1800+30"]

1. e4 {[%emt 0:00:00]} e6 {[%emt 0:00:00]} 2. d4 {[%emt 0:00:00]} d5 {[%emt 0:00:00]} 3. Nd2 {[%emt 0:00:00]} Nf6 {[%emt 0:00:00]} 4. e5 {[%emt 0:00:00]} Nfd7 {[%emt 0:00:00]} 5. Bd3 {[%emt 0:00:05]} c5 {[%emt 0:00:00]} 6. c3 {[%emt 0:00:10]} Nc6 {[%emt 0:00:11]} 7. Ne2 {[%emt 0:00:10]} cxd4 {[%emt 0:00:12]} 8. cxd4 {[%emt 0:00:05]} f6 {[%emt 0:00:14]} 9. exf6 {[%emt 0:00:18]} Nxf6 {[%emt 0:00:05]} 10. Nf3 {[%emt 0:00:14]} Bd6 {[%emt 0:00:10]} 11. O-O {[%emt 0:00:13]} Qc7 {[%emt 0:00:09]} 12. h3 {[%emt 0:09:44]} O-O {[%emt 0:00:39]} 13. Be3 {[%emt 0:00:08]} Bd7 {[%emt 0:06:26]} 14. Rc1 {[%emt 0:00:16]} Rae8 {[%emt 0:06:00]} 15. Nc3 {[%emt 0:02:54]} a6 {[%emt 0:00:45]} 16. a3 {[%emt 0:03:06]} Qb8 {[%emt 0:09:19]} 17. Re1 {[%emt 0:09:19]} Kh8 {[%emt 0:09:56]} 18. Bf1 {[%emt 0:09:33]} Ne7 {[%emt 0:03:57]} 19. Ne5 {[%emt 0:08:35]} Bxe5 {[%emt 0:15:57]} 20. dxe5 {[%emt 0:00:06]} Qxe5 {[%emt 0:02:17]} 21. Bd4 {[%emt 0:06:02]} Qg5 {[%emt 0:02:37]} 22. Bd3 {[%emt 0:04:39]} Nc6 {[%emt 0:06:40]} 23. Be3 {[%emt 0:04:50]} Qh5 {[%emt 0:01:25]} 24. Be2 {[%emt 0:01:19]} Qf7 {[%emt 0:00:35]} 25. Bc5 {[%emt 0:00:54]} Rg8 {[%emt 0:02:01]} 26. b4 {[%emt 0:05:06]} e5 {[%emt 0:03:48]} 27. b5 {[%emt 0:02:47]} axb5 {[%emt 0:00:34]} 28. Nxb5 {[%emt 0:00:36]} Ne4 {[%emt 0:06:23]} 29. Bh5 {[%emt 0:14:08]} g6 {[%emt 0:00:38]} 30. Bf3 {[%emt 0:10:18]} Nxc5 {[%emt 0:02:06]} 31. Rxc5 {[%emt 0:00:04]} Ref8 {[%emt 0:07:48]} 32. Qxd5 {[%emt 0:06:33]} Be6 {[%emt 0:01:24]} 33. Qe4 {[%emt 0:01:41]} Bxh3 {[%emt 0:03:23]} 34. Nd6 {[%emt 0:00:48]} Qf6 {[%emt 0:05:43]} 35. Nxb7 {[%emt 0:01:16]} Nd4 {[%emt 0:02:16]} 36. Qxe5 1/2-1/2

[Event "EYCC Girls-U14 2019"]
[Site "Bratislava"]
[Date "2019.08.07"]
[Round "6.10"]
[White "Kozachenko, Maria"]
[Black "Toth, Nikoletta"]
[Result "1/2-1/2"]
[ECO "B31"]
[WhiteElo "1865"]
[BlackElo "2023"]
[Annotator "NA"]
[PlyCount "120"]
[EventDate "2019.08.02"]
[EventType "swiss"]
[EventCountry "SVK"]
[SourceTitle "playchess.com"]
[Source "ChessBase"]
[SourceQuality "1"]
[TimeControl "40/5400+30:1800+30"]

1. e4 {[%emt 0:00:00]} c5 {[%emt 0:00:00]} 2. Nf3 {[%emt 0:00:00]} Nc6 {[%emt 0:00:00]} 3. Bb5 {[%emt 0:00:00]} g6 {[%emt 0:00:00]} 4. Bxc6 {[%emt 0:00:15]} dxc6 {[%emt 0:00:26]} 5. d3 {[%emt 0:01:17]} Bg7 {[%emt 0:00:27]} 6. O-O {[%emt 0:00:53]} Qc7 {[%emt 0:00:20]} 7. c3 {[%emt 0:01:42]} e5 {[%emt 0:09:43]} 8. Be3 {[%emt 0:02:46]} b6 {[%emt 0:00:24]} 9. d4 {[%emt 0:03:42]} Ba6 {[%emt 0:13:59]} 10. Re1 {[%emt 0:01:36]} Rd8 {[%emt 0:00:51]} 11. d5 {[%emt 0:01:34]} Qb7 {[%emt 0:20:11]} 12. dxc6 {[%emt 0:07:18]} Qxc6 {[%emt 0:01:31]} 13. Qb3 {[%emt 0:04:35]} Ne7 {[%emt 0:04:16]} 14. Nbd2 {[%emt 0:02:28]} O-O {[%emt 0:02:20]} 15. Bg5 {[%emt 0:06:46]} Rd7 {[%emt 0:03:13]} 16. Nc4 {[%emt 0:06:25]} Bxc4 {[%emt 0:01:38]} 17. Qxc4 {[%emt 0:00:22]} b5 {[%emt 0:01:24]} 18. Qb3 {[%emt 0:01:46]} c4 {[%emt 0:00:35]} 19. Qb4 {[%emt 0:06:01]} f6 {[%emt 0:07:57]} 20. Be3 {[%emt 0:02:53]} Rfd8 {[%emt 0:01:16]} 21. Bc5 {[%emt 0:03:30]} a5 {[%emt 0:06:26]} 22. Qa3 {[%emt 0:00:59]} Nc8 {[%emt 0:02:35]} 23. b4 {[%emt 0:04:53]} a4 {[%emt 0:01:54]} 24. Qb2 {[%emt 0:02:39]} Bf8 {[%emt 0:01:04]} 25. Bxf8 {[%emt 0:01:46]} Kxf8 {[%emt 0:00:18]} 26. Qc2 {[%emt 0:01:42]} Rd3 {[%emt 0:03:39]} 27. Re2 {[%emt 0:01:45]} Qd7 {[%emt 0:03:51]} 28. Kf1 {[%emt 0:03:02]} Kf7 {[%emt 0:01:03]} 29. Ne1 {[%emt 0:04:56]} Rd6 {[%emt 0:00:48]} 30. Qc1 {[%emt 0:02:27]} Rd2 {[%emt 0:01:40]} 31. a3 {[%emt 0:01:59]} Ne7 {[%emt 0:03:50]} 32. Rb1 {[%emt 0:02:27]} Nc6 {[%emt 0:02:23]} 33. Rb2 {[%emt 0:01:56]} Rxb2 {[%emt 0:01:48]} 34. Rxb2 {[%emt 0:00:48]} Kg7 {[%emt 0:01:21]} 35. Qe3 {[%emt 0:01:35]} Ne7 {[%emt 0:00:13]} 36. Qc5 {[%emt 0:01:01]} Rc8 {[%emt 0:01:12]} 37. Qe3 {[%emt 0:00:26]} Rc6 {[%emt 0:00:45]} 38. Rd2 {[%emt 0:01:29]} Rd6 {[%emt 0:00:07]} 39. Ke2 {[%emt 0:00:44]} Rxd2+ {[%emt 0:00:33]} 40. Qxd2 {[%emt 0:00:00]} Qxd2+ {[%emt 0:00:00]} 41. Kxd2 {[%emt 0:00:18]} f5 {[%emt 0:01:05]} 42. Ke3 {[%emt 0:01:53]} Kf6 {[%emt 0:00:32]} 43. Nf3 {[%emt 0:01:46]} h6 {[%emt 0:07:05]} 44. Nd2 {[%emt 0:04:20]} Ke6 {[%emt 0:01:51]} 45. f3 {[%emt 0:01:12]} Nc8 {[%emt 0:01:43]} 46. Nf1 {[%emt 0:01:48]} Nd6 {[%emt 0:00:20]} 47. Nd2 {[%emt 0:00:31]} Ne8 {[%emt 0:00:39]} 48. Kf2 {[%emt 0:01:22]} Nf6 {[%emt 0:00:46]} 49. Ke2 {[%emt 0:01:23]} Nh5 {[%emt 0:05:02]} 50. g3 {[%emt 0:01:47]} Nf6 {[%emt 0:01:23]} 51. h3 {[%emt 0:02:11]} Nh7 {[%emt 0:02:10]} 52. Kf2 {[%emt 0:01:43]} Ng5 {[%emt 0:01:34]} 53. h4 {[%emt 0:02:54]} Nh7 {[%emt 0:00:17]} 54. Ke3 {[%emt 0:01:21]} Nf6 {[%emt 0:00:44]} 55. Ke2 {[%emt 0:02:11]} g5 {[%emt 0:01:41]} 56. hxg5 {[%emt 0:01:21]} hxg5 {[%emt 0:00:07]} 57. Kf2 {[%emt 0:00:46]} g4 {[%emt 0:12:40]} 58. Kg2 {[%emt 0:02:50]} fxe4 {[%emt 0:01:31]} 59. fxe4 {[%emt 0:00:43]} Nh7 {[%emt 0:00:26]} 60. Kf2 {[%emt 0:00:46]} Nf6 {[%emt 0:00:36]} 1/2-1/2